[Event "Slovakian-ch Youth 2022"]
[Site "Lubovna"]
[Date "2022.05.23"]
[Round "4.1"]
[White "Visvader, Kristof"]
[Black "Elias, David"]
[Result "0-1"]
[ECO "B28"]
[WhiteElo "1607"]
[BlackElo "1901"]
[Annotator "TA"]
[PlyCount "114"]
[EventDate "2022.05.22"]
[EventCountry "SVK"]
[SourceTitle "playchess.com"]
[Source "ChessBase"]
[SourceQuality "1"]
[TimeControl "40/5400+30:1800+30"]

{[%evp 9,114,32,53,31,36,29,48,43,49,42,32,46,42,45,103,92,90,88,79,41,31,-14,10,29,50,8,27,8,3,9,10,20,23,0,79,91,87,31,32,3,6,0,84,76,206,22,36,10,33,-83,-83,-83,-83,-83,-83,-83,-83,-83,-83,-83,-83,-145,-145,-165,-145,-165,-83,-198,-62,-198,-63,-63,-54,-61,-68,-69,0,-69,0,-98,-47,-70,0,-15,0,0,0,-2981,-2022,-4134,-5081,-29979,-29980,-29980,-29981,-29981,-29982,-29985,-29985,-29985,-29986,-29986,-29986,-29986,-29987,-29987,-29988]} 1. e4 {[%emt 0:00:04]} c5 {[%emt 0:01:09]} 2. Nf3 {[%emt 0:00:09]} a6 {[%emt 0:00:52]} 3. c3 {[%emt 0:01:43]} d5 {[%emt 0:00:34]} 4. exd5 {[%emt 0:02:19]} Qxd5 {[%emt 0:00:03]} 5. Be2 {[%emt 0:02:35]} e5 {[%emt 0:02:08]} 6. d3 {[%emt 0:04:51] B28: Sicilian: 2 Nf3 a6 (O'Kelly Variation).} (6. d4 {is more complex.} exd4 7. cxd4 cxd4 8. Nc3) 6... Nc6 {[%emt 0:01:25] [#]} 7. Nbd2 $146 {[%emt 0:02:46]} ({Predecessor:} 7. O-O Bg4 8. Qa4 Bd7 9. Qc2 Be7 10. Nbd2 b5 11. Ne4 Nf6 12. Rd1 O-O 13. Nfg5 {0-1 (69) Sabotic,A-Rusu Brno 1994}) 7... Bf5 {[%emt 0:03:06]} 8. Nc4 {[%emt 0:02:11] White is slightly better.} Rd8 {[%emt 0:00:14]} 9. Ne3 {[%emt 0:00:58][%csl LRd5,LRf5]} Qd7 {[%emt 0:00:24][%cal Rf5d3]} 10. Nxf5 {[%emt 0:00:56]} Qxf5 {[%emt 0:00:02]} 11. Qb3 {[%emt 0:02:58]} b5 {[%emt 0:02:40]} (11... Qd7 $14) 12. a4 $16 {[%emt 0:04:34]} Na5 {[%emt 0:14:03]} 13. Qa2 {[%emt 0:02:33]} b4 {[%emt 0:02:05]} 14. cxb4 {[%emt 0:05:57]} cxb4 {[%emt 0:00:55]} 15. Be3 {[%emt 0:03:21]} (15. O-O $5 {[%cal Rc1e3]}) 15... Nf6 {[%emt 0:03:52]} (15... b3 $5 16. Qb1 Bb4+ 17. Bd2 Bxd2+ 18. Nxd2 Ne7 $11) 16. O-O {[%emt 0:04:42]} Nd5 $1 {[%emt 0:08:18]} 17. Bd2 {[%emt 0:04:59]} (17. d4 $5 {[%cal Re2a6]}) 17... Bc5 {[%emt 0:10:49]} 18. Rac1 {[%emt 0:04:12]} Bb6 {[%emt 0:05:48]} 19. Rfe1 {[%emt 0:11:32]} O-O {[%emt 0:05:17]} 20. Bf1 $36 {[%emt 0:04:19][%mdl 2048] White has good play.} Rfe8 {[%emt 0:03:09]} 21. Re4 {[%emt 0:02:06]} Nf4 {[%emt 0:18:29]} (21... Qg6 $11) 22. Bxf4 {[%emt 0:14:24]} b3 {[%emt 0:00:45] [#]} 23. Qb1 {[%emt 0:01:51]} exf4 $14 {[%emt 0:00:15]} 24. Rce1 {[%emt 0:00:33]} Rxe4 {[%emt 0:01:09]} 25. Rxe4 {[%emt 0:01:45]} Qc5 {[%emt 0:06:17]} (25... Nc6 $11 {keeps the balance.}) 26. Qe1 {[%emt 0:01:35]} g5 {[%emt 0:04:01]} (26... g6 $16 {was necessary.}) 27. Re8+ $2 {[%emt 0:00:59]} (27. d4 $18 Qd6 28. Nxg5) 27... Rxe8 $11 {[%emt 0:00:11]} 28. Qxe8+ {[%emt 0:00:04]} Kg7 $1 {[%emt 0:01:12]} 29. Qe5+ {[%emt 0:01:51]} (29. d4 $14 {stays ahead.} Qd5 30. Qc8 (30. Bxa6 Bxd4 31. Nxd4 Qxd4 $14)) 29... Qxe5 $17 {[%emt 0:00:11]} 30. Nxe5 {[%emt 0:00:05][%mdl 4096] Endgame KBN-KBN} Bd4 {[%emt 0:01:06][%csl LRb2,LRe5]} 31. Nc4 {[%emt 0:00:42]} Nxc4 {[%emt 0:01:18]} 32. dxc4 {[%emt 0:00:04][%cal Oc4c5]} Bxb2 {[%emt 0:01:06] KB-KB. Black is more active.} 33. c5 {[%emt 0:00:15]} Bd4 {[%emt 0:01:20]} 34. Bxa6 {[%emt 0:00:16]} Bxc5 {[%emt 0:00:23]} 35. Bc4 {[%emt 0:01:25]} (35. Kf1 $142) 35... b2 {[%emt 0:00:09]} 36. Bd3 {[%emt 0:00:03]} h5 {[%emt 0:01:51]} 37. Kf1 {[%emt 0:00:28]} Kf6 {[%emt 0:00:08]} (37... Bb6 $1 $19 38. Ke2 Kf6) 38. f3 {[%emt 0:00:13]} (38. a5 $17) 38... Ke5 {[%emt 0:00:21]} (38... Bb4 $19 {Threatens to win with ...Ke5.} 39. Ke2 Ke5) 39. Ke2 {[%emt 0:00:13]} ({White should try} 39. a5 $15) 39... Kd4 {[%emt 0:00:16]} (39... Bb4 $19 {Hoping for ...Kd4.} 40. Bb1 Kd4) 40. a5 $15 {[%emt 0:00:25]} Kc3 {[%emt 0:01:41]} 41. Be4 {[%emt 0:30:37]} Kb3 {[%emt 0:01:00] And now ...Ka2 would win.} 42. Bb1 {[%emt 0:00:00]} Kc3 {[%emt 0:02:33]} 43. Be4 {[%emt 0:00:00]} Kd4 {[%emt 0:05:57]} (43... Kb4 $15) 44. a6 {[%emt 0:00:00] [#]} (44. Bd3 $1 $11) 44... g4 {[%emt 0:00:53]} (44... Kc3 $1 $17 45. Bf5 Bd4) 45. h3 {[%emt 0:00:00]} Ke5 {[%emt 0:01:14]} ({Better is} 45... gxh3 $15 46. gxh3 Kc3) 46. Bd3 {[%emt 0:00:00]} f5 {[%emt 0:02:08]} 47. Bc2 {[%emt 0:00:00]} Kf6 {[%emt 0:00:15] aiming for ...Kg5.} 48. Kf1 $2 {[%emt 0:00:00][%mdl 8192] [#]} (48. h4 $11) 48... Kg5 $1 $19 {[%emt 0:00:32]} 49. Bd3 {[%emt 0:00:00]} Kh4 {[%emt 0:00:54]} 50. fxg4 {[%emt 0:00:00]} fxg4 {[%emt 0:01:50] Black mates.} 51. hxg4 {[%emt 0:00:00]} hxg4 {[%emt 0:02:12]} 52. Be4 {[%emt 0:00:00]} Kg3 {[%emt 0:00:23]} 53. Bf5 {[%emt 0:00:00]} f3 {[%emt 0:02:08]} 54. gxf3 {[%emt 0:00:00]} Kxf3 {[%emt 0:00:45]} 55. Bg6 {[%emt 0:00:00]} Kg3 {[%emt 0:02:20]} 56. Ke2 {[%emt 0:00:00]} Kh2 {[%emt 0:00:15]} 57. Kd2 {[%emt 0:00:00]} g3 {Weighted Error Value: White=0.56/Black=0.24 (precise)} 0-1

[Event "Slovakian-ch Youth 2022"]
[Site "Lubovna"]
[Date "2022.05.23"]
[Round "4.1"]
[White "Pisarcik, Richard"]
[Black "Mazak, Ryan"]
[Result "1-0"]
[ECO "B01"]
[WhiteElo "1343"]
[BlackElo "1575"]
[Annotator "NA COMBH"]
[PlyCount "87"]
[EventDate "2022.05.22"]
[EventCountry "SVK"]
[SourceTitle "playchess.com"]
[Source "ChessBase"]
[SourceQuality "1"]
[TimeControl "40/5400+30:1800+30"]

1. e4 {[%emt 0:00:09]} d5 {[%emt 0:00:06]} 2. exd5 {[%emt 0:00:05]} Nf6 {[%emt 0:00:10]} 3. Nf3 {[%emt 0:00:04]} Qxd5 {[%emt 0:00:26]} 4. d4 {[%emt 0:00:31]} c6 {[%emt 0:07:14]} 5. Nc3 {[%emt 0:01:37]} Qa5 {[%emt 0:03:34]} 6. Bd2 {[%emt 0:02:00]} Qc7 {[%emt 0:00:29]} 7. Bd3 {[%emt 0:02:27]} g6 {[%emt 0:05:32]} 8. Qe2 {[%emt 0:01:15]} Bg7 {[%emt 0:04:20]} 9. O-O {[%emt 0:01:08]} O-O {[%emt 0:00:53]} 10. h3 {[%emt 0:02:05]} Nd5 {[%emt 0:08:10]} 11. Nxd5 {[%emt 0:02:03]} cxd5 {[%emt 0:00:23]} 12. Bb4 {[%emt 0:00:27]} Nc6 {[%emt 0:00:27]} 13. Bc3 {[%emt 0:01:00]} Bd7 {[%emt 0:01:51]} 14. Rad1 {[%emt 0:02:24]} Rae8 {[%emt 0:01:22]} 15. b4 {[%emt 0:01:33]} Qb6 {[%emt 0:02:05]} 16. Ne5 {[%emt 0:20:46]} Nxe5 {[%emt 0:02:21]} 17. dxe5 {[%emt 0:00:25]} d4 {[%emt 0:01:35]} 18. Bd2 {[%emt 0:00:45]} Bc6 {[%emt 0:09:46]} 19. Kh2 {[%emt 0:06:01]} Qd8 {[%emt 0:03:48]} 20. b5 {[%emt 0:01:19]} Bd5 {[%emt 0:02:32]} 21. f4 {[%emt 0:01:45]} Qc7 {[%emt 0:01:39]} 22. a4 {[%emt 0:00:54]} e6 {[%emt 0:02:35]} 23. Bb4 {[%emt 0:01:00]} Qd8 {[%emt 0:08:32]} 24. Be4 {[%emt 0:02:03]} Bxe4 {[%emt 0:02:33]} 25. Bxf8 {[%emt 0:01:07]} Bxg2 {[%emt 0:02:24]} 26. Qxg2 {[%emt 0:00:41]} Rxf8 {[%emt 0:01:03]} 27. Qxb7 {[%emt 0:00:36]} g5 {[%emt 0:02:54]} 28. Qe4 {[%emt 0:01:41]} Qc7 {[%emt 0:00:55]} 29. Kh1 {[%emt 0:01:03]} Qc3 {[%emt 0:01:32]} 30. Qg2 {[%emt 0:00:55]} Rc8 {[%emt 0:00:37]} 31. Qf3 {[%emt 0:02:37]} Qxf3+ {[%emt 0:01:02]} 32. Rxf3 {[%emt 0:00:08]} gxf4 {[%emt 0:00:33]} 33. Rxf4 {[%emt 0:01:09]} Rxc2 {[%emt 0:00:20]} 34. Rg4 {[%emt 0:00:23]} h6 {[%emt 0:00:39]} 35. Rdxd4 {[%emt 0:00:48]} Kh7 {[%emt 0:00:51]} 36. Rd7 {[%emt 0:00:20]} Bxe5 {[%emt 0:01:32]} 37. Rxf7+ {[%emt 0:00:12]} Kh8 {[%emt 0:00:12]} 38. Rf8+ {[%emt 0:00:12]} Kh7 {[%emt 0:00:14]} 39. Rf7+ {[%emt 0:00:04]} Kh8 {[%emt 0:00:11]} 40. Rxa7 {[%emt 0:00:10]} Rc1+ {[%emt 0:00:23]} 41. Kg2 {[%emt 0:30:30]} Rb1 {[%emt 0:31:37]} 42. Ra6 {[%emt 0:00:52]} Bc7 {[%emt 0:01:55]} 43. Rc4 {[%emt 0:00:52]} Be5 {[%emt 0:01:54]} 44. Ra7 1-0

[Event "Slovakian-ch Youth 2022"]
[Site "Lubovna"]
[Date "2022.05.23"]
[Round "4.2"]
[White "Stevik, Patrik"]
[Black "Turcan, Richard"]
[Result "0-1"]
[ECO "A30"]
[WhiteElo "2249"]
[BlackElo "2278"]
[Annotator "TA"]
[PlyCount "141"]
[EventDate "2022.05.22"]
[EventCountry "SVK"]
[SourceTitle "playchess.com"]
[Source "ChessBase"]
[SourceQuality "1"]
[TimeControl "40/5400+30:1800+30"]

{[%evp 24,141,35,18,25,-7,15,0,-10,-19,-20,-6,-4,-7,-12,-72,-82,-105,-103,-168,-97,-161,-147,-142,-129,-334,-319,-331,-320,-290,-295,-533,-526,-540,-549,-643,-637,-664,-625,-647,-693,-659,-627,-889,-890,-788,-788,-785,-776,-777,-768,-733,-719,-1278,-1314,-1327,-1327,-1324,-1288,-1272,-1257,-1218,-1197,-957,-828,-1181,-717,-1277,-1264,-4137,-1427,-1733,-1308,-1175,-675,-836,-809,-2189,-1761,-29965,-4137,-4137,-4137,-4137,-4137,-29971,-29972,-29972,-29973,-29980,-29981,-29982,-29982,-29981,-29982,-29982,-29983,-29983,-29984,-29988,-29987,-29989,-29990,-29990,-29991,-29991,-29990,-29992,-29991,-29993,-29994,-29994,-29992,-29992,-29993,-29996,-29997,-29997,-29998,-29999]} 1. Nf3 {[%emt 0:00:24]} c5 {[%emt 0:00:54]} 2. g3 {[%emt 0:01:21]} b6 {[%emt 0:00:53]} 3. Bg2 {[%emt 0:01:02]} Bb7 {[%emt 0:01:57]} 4. O-O {[%emt 0:00:14]} Nf6 {[%emt 0:00:36]} 5. c4 {[%emt 0:01:07]} e6 {[%emt 0:00:54]} 6. Nc3 {[%emt 0:01:37]} Be7 {[%emt 0:01:54]} 7. d4 {[%emt 0:03:01]} cxd4 {[%emt 0:01:35]} 8. Qxd4 {[%emt 0:01:55]} O-O {[%emt 0:01:14]} 9. Rd1 {[%emt 0:02:30]} d6 {[%emt 0:09:18]} 10. b3 {[%emt 0:05:41]} Nbd7 {[%emt 0:11:12]} 11. Bb2 {[%emt 0:07:17]} a6 {[%emt 0:01:20]} 12. h3 {[%emt 0:04:47]} Qc7 {[%emt 0:02:49]} 13. Rac1 {[%emt 0:01:32]} Rac8 {[%emt 0:06:09] A30: Symmetrical English: Double Fianchetto and Hedgehog.} 14. Qf4 {[%emt 0:09:37]} Rfd8 {[%emt 0:09:39]} 15. g4 {[%emt 0:04:39]} h6 {[%emt 0:00:55] The position is equal.} 16. h4 {[%emt 0:02:18]} Ne5 {[%emt 0:03:06] [#]} 17. Nxe5 $146 {[%emt 0:03:29]} ({Predecessor:} 17. g5 Nh5 18. Qe3 hxg5 19. hxg5 Ng4 20. Qd4 f5 21. Na4 Bc6 22. Qxb6 Qxb6 23. Nxb6 Rb8 24. c5 Nf4 25. Bf1 dxc5 26. Nc4 Nd3 27. Rxd3 Rxd3 28. exd3 Bxf3 {½-½ (28) Alvarez Pedraza,A (2476)-Sanchez,S (2397) Bogota 2014}) 17... dxe5 {[%emt 0:02:32]} 18. Qg3 {[%emt 0:00:38][%cal Oc3b5]} Bxg2 {[%emt 0:01:02]} 19. Qxg2 {[%emt 0:00:59] [#]} (19. Kxg2 $11 Rxd1 20. Nxd1) 19... Rd4 $1 $17 {[%emt 0:08:39]} 20. f3 {[%emt 0:03:28]} Rcd8 $36 {[%emt 0:04:28][%mdl 2048] Keeping White busy. Black is more active.} 21. e4 {[%emt 0:06:49]} (21. Qg3 $17 {is a better defense.} Rd2 22. Ba1) 21... Bc5 {[%emt 0:06:11]} (21... Bb4 $19 {...Bxc3 is the strong threat.} 22. Rxd4 exd4) 22. Kh2 {[%emt 0:02:05]} (22. Kf1 $17 {was worth a try.}) 22... Qe7 {[%emt 0:02:10][%cal Of6h5]} 23. Kh3 {[%emt 0:01:51]} Nh7 {[%emt 0:05:04]} 24. b4 $2 {[%emt 0:07:57]} (24. Rxd4 $17 exd4 25. Na4) 24... Bxb4 $19 {[%emt 0:02:45]} 25. Nd5 {[%emt 0:00:14]} exd5 {[%emt 0:00:49]} 26. Bxd4 {[%emt 0:00:07]} exd4 {[%emt 0:00:20]} 27. Rxd4 {[%emt 0:00:28]} (27. cxd5 Bc5 28. Rc2) 27... dxe4 {[%emt 0:01:15]} 28. Rxe4 {[%emt 0:00:20]} Qf6 {[%emt 0:00:59]} 29. Rc2 {[%emt 0:00:48]} Rd3 {[%emt 0:01:32]} 30. Rf2 {[%emt 0:01:06]} Be7 {[%emt 0:03:16][%csl Ge7][%cal Rf6h4]} 31. Qg3 {[%emt 0:01:49]} Bd6 {[%emt 0:00:10]} 32. Qg2 {[%emt 0:00:43]} h5 {[%emt 0:02:31]} 33. Qf1 {[%emt 0:00:31]} hxg4+ {[%emt 0:01:19]} 34. Rxg4 {[%emt 0:02:23]} Qf5 {[%emt 0:00:18]} 35. Kg2 {[%emt 0:00:20] [#]} Rxf3 $3 {[%emt 0:01:17][%mdl 512]} 36. Rxg7+ {[%emt 0:00:17]} Kxg7 {[%emt 0:00:05]} 37. Rxf3 {[%emt 0:00:07]} Qg4+ {[%emt 0:00:06]} 38. Kh1 {[%emt 0:01:29]} Qxh4+ {[%emt 0:00:21]} 39. Qh3 {[%emt 0:00:04]} Qxh3+ {[%emt 0:00:50]} 40. Rxh3 {[%emt 0:00:01]} f5 {[%emt 0:00:42]} 41. Kg2 {[%emt 0:30:27]} Ng5 {[%emt 0:31:27]} 42. Rd3 {[%emt 0:00:09]} Bc5 {[%emt 0:00:29] White must now prevent ...f4.} 43. Kg3 {[%emt 0:00:17]} Kf6 {[%emt 0:00:08]} 44. Rd8 {[%emt 0:00:18]} Nf7 {[%emt 0:01:05]} 45. Ra8 {[%emt 0:00:42]} a5 {[%emt 0:00:06]} 46. Kf4 {[%emt 0:00:07]} Ng5 {[%emt 0:00:32]} (46... Bd6+ $142 47. Kf3 Ne5+ 48. Kg3 Nxc4+ 49. Kf3 Ne5+ 50. Kf4 Ng4+ 51. Kf3 Ne5+ 52. Kf4 Nc6+ 53. Kf3 Nb4) 47. Rh8 {[%emt 0:00:49]} Ne6+ {[%emt 0:00:05]} 48. Kf3 {[%emt 0:00:05]} Ke5 {[%emt 0:00:07] Hoping for ...Nd4+.} 49. Re8 {[%emt 0:00:08]} a4 {[%emt 0:01:50]} 50. Rb8 {[%emt 0:02:10]} Ng5+ {[%emt 0:00:17]} 51. Ke2 {[%emt 0:00:12]} Kd4 {[%emt 0:00:23]} (51... f4 $142 52. Rb7 f3+ 53. Kf1 Ne4 54. Rf7 f2 55. Kg2 Nd2 56. Kh2 f1=Q 57. Rxf1 Nxf1+ 58. Kg2 Nd2 59. Kh1 a3 60. Kh2 Ne4 61. Kg2 Nc3 62. Kh2 Nxa2 63. Kg3 Nc3 64. Kh4 a2 65. Kg4 a1=Q 66. Kf3 Qf1+ 67. Kg4 Ne4 68. Kh5 Qf5+ 69. Kh6 Bf8#) 52. Rh8 {[%emt 0:00:37]} Kxc4 {[%emt 0:00:20] Strongly threatening ...b5.} 53. Rh4+ {[%emt 0:00:36]} Bd4 {[%emt 0:00:42]} 54. Kd1 {[%emt 0:00:33]} Kd3 {[%emt 0:00:50] Black mates.} 55. Rf4 {[%emt 0:00:23]} Ne4 {[%emt 0:00:06]} 56. Rxf5 {[%emt 0:00:42]} Nc3+ {[%emt 0:00:04]} 57. Kc1 {[%emt 0:00:08]} a3 {[%emt 0:00:45][%cal Rd4e3]} 58. Rf3+ {[%emt 0:00:12]} Be3+ {[%emt 0:00:05]} 59. Rxe3+ {[%emt 0:00:22]} Kxe3 {[%emt 0:00:03] KN-KP} 60. Kc2 {[%emt 0:00:53]} Nb5 {[%emt 0:00:07]} 61. Kb1 {[%emt 0:00:49]} Kd2 {[%emt 0:00:10]} 62. Ka1 {[%emt 0:00:04]} Nd4 {[%emt 0:00:53]} 63. Kb1 {[%emt 0:00:01]} b5 {[%emt 0:00:08]} 64. Ka1 {[%emt 0:00:05]} Kc3 {[%emt 0:00:21]} 65. Kb1 {[%emt 0:00:03]} b4 {[%emt 0:00:19]} 66. Ka1 {[%emt 0:00:20]} b3 {[%emt 0:00:40]} 67. Kb1 {[%emt 0:00:06]} Nf3 {[%emt 0:00:09]} 68. axb3 {[%emt 0:00:20]} Kxb3 {[%emt 0:00:07]} 69. Ka1 {[%emt 0:00:02]} Nd4 {[%emt 0:00:09]} 70. Kb1 {[%emt 0:00:07]} a2+ {[%emt 0:00:04]} 71. Ka1 {[%emt 0:00:04] Black took control after the opening.  Weighted Error Value: White=0.83/Black=0.16 (very precise)} 0-1

[Event "Slovakian-ch Youth 2022"]
[Site "Lubovna"]
[Date "2022.05.23"]
[Round "4.2"]
[White "Magda, Filip"]
[Black "Benci, Jozef"]
[Result "1/2-1/2"]
[ECO "A48"]
[WhiteElo "1624"]
[BlackElo "1873"]
[Annotator "NA COMBH"]
[PlyCount "83"]
[EventDate "2022.05.22"]
[EventCountry "SVK"]
[SourceTitle "playchess.com"]
[Source "ChessBase"]
[SourceQuality "1"]
[TimeControl "40/5400+30:1800+30"]

1. d4 {[%emt 0:00:18]} Nf6 {[%emt 0:00:11]} 2. Nf3 {[%emt 0:00:35]} g6 {[%emt 0:00:17]} 3. c4 {[%emt 0:00:24]} Bg7 {[%emt 0:00:11]} 4. g3 {[%emt 0:00:22]} c6 {[%emt 0:01:15]} 5. Bg2 {[%emt 0:01:05]} O-O {[%emt 0:06:45]} 6. O-O {[%emt 0:00:06]} d5 {[%emt 0:00:20]} 7. Nc3 {[%emt 0:01:37]} Bg4 {[%emt 0:09:31]} 8. cxd5 {[%emt 0:03:54]} cxd5 {[%emt 0:02:38]} 9. Re1 {[%emt 0:04:44]} Bxf3 {[%emt 0:02:55]} 10. Bxf3 {[%emt 0:00:17]} Nc6 {[%emt 0:00:49]} 11. Bg5 {[%emt 0:08:03]} Ne4 {[%emt 0:04:53]} 12. Nxe4 {[%emt 0:05:21]} dxe4 {[%emt 0:01:41]} 13. Bxe4 {[%emt 0:00:47]} Qxd4 {[%emt 0:01:26]} 14. Bxc6 {[%emt 0:01:39]} bxc6 {[%emt 0:04:59]} 15. Bxe7 {[%emt 0:01:21]} Qxb2 {[%emt 0:05:54]} 16. Rb1 {[%emt 0:01:08]} Qxa2 {[%emt 0:01:19]} 17. Bxf8 {[%emt 0:00:21]} Rxf8 {[%emt 0:00:36]} 18. Qb3 {[%emt 0:01:05]} Qxb3 {[%emt 0:03:20]} 19. Rxb3 {[%emt 0:00:06]} a5 {[%emt 0:10:30]} 20. Rc1 {[%emt 0:05:17]} a4 {[%emt 0:04:35]} 21. Rb4 {[%emt 0:01:36]} Ra8 {[%emt 0:14:27]} 22. Rc2 {[%emt 0:08:14]} c5 {[%emt 0:08:17]} 23. Rbc4 {[%emt 0:03:12]} a3 {[%emt 0:01:37]} 24. Ra2 {[%emt 0:01:05]} Bb2 {[%emt 0:02:40]} 25. Rxc5 {[%emt 0:00:28]} Rd8 {[%emt 0:01:26]} 26. Ra5 {[%emt 0:04:27]} Re8 {[%emt 0:02:03]} 27. e3 {[%emt 0:00:56]} Kg7 {[%emt 0:00:44]} 28. R2xa3 {[%emt 0:01:23]} Bxa3 {[%emt 0:00:19]} 29. Rxa3 {[%emt 0:00:02]} Rd8 {[%emt 0:01:12]} 30. Kg2 {[%emt 0:00:29]} Rd2 {[%emt 0:00:14]} 31. Kf3 {[%emt 0:00:17]} Rb2 {[%emt 0:00:14]} 32. e4 {[%emt 0:00:25]} Rc2 {[%emt 0:00:50]} 33. h4 {[%emt 0:00:10]} h5 {[%emt 0:00:08]} 34. Ke3 {[%emt 0:00:12]} Rb2 {[%emt 0:00:37]} 35. f3 {[%emt 0:00:29]} Rb4 {[%emt 0:01:32]} 36. g4 {[%emt 0:01:31]} hxg4 {[%emt 0:01:03]} 37. fxg4 {[%emt 0:00:34]} Rb1 {[%emt 0:03:13]} 38. Kf3 {[%emt 0:04:12]} Rh1 {[%emt 0:00:25]} 39. Kg3 {[%emt 0:00:46]} Rg1+ {[%emt 0:00:17]} 40. Kf3 {[%emt 0:00:12]} Rh1 {[%emt 0:00:17]} 41. Kg3 {[%emt 0:30:04]} Rg1+ {[%emt 0:30:14]} 42. Kf3 {[%emt 0:00:09]} 1/2-1/2

[Event "Slovakian-ch Youth 2022"]
[Site "Lubovna"]
[Date "2022.05.23"]
[Round "4.3"]
[White "Gay, Lukas"]
[Black "Polomsky, Tomas"]
[Result "1-0"]
[ECO "B41"]
[WhiteElo "1480"]
[BlackElo "1467"]
[Annotator "NA COMBH"]
[PlyCount "107"]
[EventDate "2022.05.22"]
[EventCountry "SVK"]
[SourceTitle "playchess.com"]
[Source "ChessBase"]
[SourceQuality "1"]
[TimeControl "40/5400+30:1800+30"]

1. e4 {[%emt 0:00:17]} c5 {[%emt 0:00:30]} 2. Nf3 {[%emt 0:00:44]} e6 {[%emt 0:00:37]} 3. d4 {[%emt 0:00:31]} cxd4 {[%emt 0:01:03]} 4. Nxd4 {[%emt 0:00:06]} a6 {[%emt 0:00:50]} 5. Qf3 {[%emt 0:01:41]} Qc7 {[%emt 0:03:46]} 6. Qg3 {[%emt 0:00:42]} Qb6 {[%emt 0:11:44]} 7. Nb3 {[%emt 0:01:50]} g6 {[%emt 0:04:35]} 8. Bd2 {[%emt 0:01:07]} Bg7 {[%emt 0:01:18]} 9. Bc3 {[%emt 0:00:12]} f6 {[%emt 0:05:27]} 10. Bd3 {[%emt 0:00:41]} Kf7 {[%emt 0:02:13]} 11. N1d2 {[%emt 0:01:08]} Nc6 {[%emt 0:00:48]} 12. Nc4 {[%emt 0:00:43]} Qa7 {[%emt 0:02:59]} 13. Rd1 {[%emt 0:09:42]} b5 {[%emt 0:02:33]} 14. Nd6+ Kf8 {[%emt 0:02:56]} 15. Be2 {[%emt 0:00:53]} Nge7 {[%emt 0:02:22]} 16. h4 {[%emt 0:03:19]} Bb7 {[%emt 0:03:33]} 17. Nxb7 {[%emt 0:01:32]} Qxb7 {[%emt 0:01:06]} 18. Qd6 {[%emt 0:00:25]} Rd8 {[%emt 0:03:57]} 19. h5 {[%emt 0:01:43]} Ke8 {[%emt 0:02:12]} 20. hxg6 {[%emt 0:01:42]} hxg6 {[%emt 0:00:38]} 21. Rxh8+ {[%emt 0:00:05]} Bxh8 {[%emt 0:00:18]} 22. Qh2 {[%emt 0:00:37]} Bg7 {[%emt 0:01:19]} 23. f3 {[%emt 0:02:45]} Qa7 {[%emt 0:03:32]} 24. Rd3 {[%emt 0:03:37]} Kf7 {[%emt 0:04:56]} 25. f4 {[%emt 0:00:28]} Rh8 {[%emt 0:01:24]} 26. Rh3 {[%emt 0:00:07]} Rxh3 {[%emt 0:01:11]} 27. Qxh3 {[%emt 0:00:05]} Qg1+ {[%emt 0:00:57]} 28. Bf1 {[%emt 0:00:06]} d5 {[%emt 0:01:19]} 29. Bd2 {[%emt 0:01:00]} Qb6 {[%emt 0:02:02]} 30. Be3 {[%emt 0:00:34]} Qc7 {[%emt 0:02:17]} 31. Nc5 {[%emt 0:00:28]} f5 {[%emt 0:02:10]} 32. Qh7 {[%emt 0:01:41]} Qa5+ {[%emt 0:02:51]} 33. Kf2 {[%emt 0:00:47]} Nd8 {[%emt 0:09:42]} 34. exf5 {[%emt 0:00:43]} Nxf5 {[%emt 0:00:38]} 35. Nd7 {[%emt 0:01:35]} Ke8 {[%emt 0:05:07]} 36. Ne5 {[%emt 0:00:46]} Bxe5 {[%emt 0:00:38]} 37. fxe5 {[%emt 0:00:33]} Ne7 {[%emt 0:01:22]} 38. Bd3 {[%emt 0:01:28]} Qxa2 39. Bc5 {[%emt 0:00:16]} Ndc6 {[%emt 0:02:40]} 40. Bxg6+ {[%emt 0:04:37]} Kd7 {[%emt 0:00:25]} 41. Bxe7 {[%emt 0:30:30]} Nxe7 {[%emt 0:32:41]} 42. Qf7 {[%emt 0:00:48]} Qc4 {[%emt 0:02:49]} 43. Qe8+ {[%emt 0:00:11]} Kc7 {[%emt 0:00:21]} 44. Qxe7+ {[%emt 0:00:10]} Kb8 {[%emt 0:01:27]} 45. Qxe6 {[%emt 0:01:17]} Qf4+ {[%emt 0:02:09]} 46. Kg1 Qe3+ {[%emt 0:02:27]} 47. Kh2 {[%emt 0:01:22]} Qh6+ {[%emt 0:00:00]} 48. Kg3 {[%emt 0:00:00]} Qg5+ {[%emt 0:00:00]} 49. Qg4 {[%emt 0:00:00]} Qe3+ {[%emt 0:00:00]} 50. Kh4 {[%emt 0:00:00]} Qe1+ {[%emt 0:00:00]} 51. g3 {[%emt 0:00:00]} Qh1+ {[%emt 0:00:00]} 52. Kg5 {[%emt 0:00:00]} Qc1+ {[%emt 0:00:00]} 53. Qf4 {[%emt 0:00:00]} Qxb2 {[%emt 0:00:00]} 54. e6+ {[%emt 0:00:00]} 1-0

[Event "Slovakian-ch Youth 2022"]
[Site "Lubovna"]
[Date "2022.05.23"]
[Round "4.3"]
[White "Matejka, Simon"]
[Black "Sotnik, Simon"]
[Result "1-0"]
[ECO "D11"]
[WhiteElo "1235"]
[BlackElo "1038"]
[Annotator "NA COMBH"]
[PlyCount "58"]
[EventDate "2022.05.22"]
[EventCountry "SVK"]
[SourceTitle "playchess.com"]
[Source "ChessBase"]
[SourceQuality "1"]
[TimeControl "40/5400+30:1800+30"]

1. d4 {[%emt 0:00:10]} d5 {[%emt 0:02:59]} 2. c4 {[%emt 0:01:05]} c6 {[%emt 0:02:08]} 3. Nf3 {[%emt 0:01:23]} Nf6 {[%emt 0:01:14]} 4. Bf4 {[%emt 0:01:04]} Bg4 {[%emt 0:02:20]} 5. h3 {[%emt 0:01:36]} Bxf3 {[%emt 0:00:41]} 6. exf3 {[%emt 0:00:24]} h6 {[%emt 0:00:49]} 7. Nc3 {[%emt 0:00:55]} e6 {[%emt 0:00:43]} 8. c5 {[%emt 0:01:45]} Nbd7 {[%emt 0:00:36]} 9. b4 {[%emt 0:02:05]} b6 {[%emt 0:00:25]} 10. Ba6 {[%emt 0:04:48]} Be7 {[%emt 0:01:15]} 11. Bb7 {[%emt 0:00:25]} Rb8 {[%emt 0:00:47]} 12. Bxb8 {[%emt 0:00:32]} Qxb8 {[%emt 0:00:28]} 13. Bxc6 {[%emt 0:00:23]} bxc5 {[%emt 0:01:23]} 14. bxc5 {[%emt 0:01:40]} O-O {[%emt 0:00:37]} 15. Rb1 {[%emt 0:00:55]} Qc7 {[%emt 0:04:38]} 16. Qa4 {[%emt 0:02:13]} Rb8 {[%emt 0:00:52]} 17. Rxb8+ {[%emt 0:01:31]} Nxb8 {[%emt 0:00:21]} 18. Bb5 {[%emt 0:00:43]} e5 {[%emt 0:01:27]} 19. c6 {[%emt 0:02:52]} a6 {[%emt 0:00:49]} 20. Bxa6 {[%emt 0:04:08]} Nxc6 {[%emt 0:00:18]} 21. O-O {[%emt 0:03:24]} Nxd4 {[%emt 0:01:07]} 22. Nb5 {[%emt 0:02:55]} Nxb5 {[%emt 0:00:35]} 23. Bxb5 {[%emt 0:00:39]} e4 {[%emt 0:00:53]} 24. Qa8+ {[%emt 0:00:59]} Kh7 {[%emt 0:00:31]} 25. fxe4 {[%emt 0:00:36]} dxe4 {[%emt 0:00:38]} 26. a4 {[%emt 0:00:53]} Qe5 {[%emt 0:00:55]} 27. Re1 {[%emt 0:03:43]} Bd6 {[%emt 0:00:33]} 28. g3 {[%emt 0:01:14]} Nh5 29. Qd8 Qd4 1-0